Cogmind - Beta 14 @@@ ROGUE MODE // 2024.10.06 @ 23:32:03 Player: Reini1001 Result: Destroyed by Y-54 Guardian with Flak Gun Performance ------------- Evolutions (4) 2000 Regions Visited (6) 1200 Robots Destroyed (43) 215 Value Destroyed (1359) 1359 Prototype IDs (1) 20 Alien Tech Used (0) 0 Bonus (227) 227 TOTAL SCORE: 5021 Bonus ------- High Alert Combat Kills 83 Follower Combat Kills 144 Cogmind --------- Core Integrity 0/850 Matter 300/300 Energy 4/100 System Corruption 6% Temperature Cool (18) Movement Core (50) Location -6/Factory Parts ------- > --- POWER (3) -------- (None) > --- PROPULSION (4) --- (None) > --- UTILITY (4) ------ Triangulator Dynamic Insulation System > --- WEAPON (4) ------- (None) > --- INVENTORY (5) ---- (None) Peak State ------------ > --- POWER ------------ Light Nuclear Core Light Nuclear Core > --- PROPULSION ------- Flight Unit Improved Flight Unit Improved Flight Unit Cesium-ion Thruster > --- UTILITY ---------- Cooling System Advanced Targeting Computer > --- WEAPON ----------- Heavy Missile Launcher Heavy Missile Launcher Heavy Missile Launcher > --- INVENTORY -------- VTOL Module Beam Rifle Rocket Launcher Missile Launcher [Rating: 33] Favorites ----------- Power Light Ion Engine Engine Light Ion Engine Power Core Light Nuclear Core Propulsion Flight Unit Treads Light Treads Wheel Wheel Flight Unit Flight Unit Utility Cooling System Device Cooling System Processor Advanced Targeting Computer Protection Improved Light Armor Plating Weapon Heavy Missile Launcher Energy Gun Shock Rifle Energy Cannon Beam Cannon Ballistic Gun Assault Rifle Ballistic Cannon Magnetic Acceleration Cannon Launcher Heavy Missile Launcher Impact Weapon Mace Build | -11 -10 -9 -9 -8 -7 -6 ------- Run | Yrd Mat Mat Min Mat Fac Fac Slots Evolved 8 | . . 2 . 2 2 2 Power 2 | . . 1 . . 1 . Propulsion 2 | . . . . 2 . . Utility 2 | . . . . . 1 1 Weapon 2 | . . 1 . . . 1 Parts Attached 63 | 5 12 5 . 15 7 19 Power 8 | 1 1 . . 2 3 1 Engine 5 | 1 1 . . . 2 1 Core 3 | . . . . 2 1 . Reactor . | . . . . . . . Propulsion 19 | 2 4 3 . 5 3 2 Treads 1 | . . . . . . 1 Leg . | . . . . . . . Wheel 2 | 2 . . . . . . Hover . | . . . . . . . Flight 16 | . 4 3 . 5 3 1 Utility 12 | . 3 . . 2 . 7 Device 8 | . 1 . . 1 . 6 Storage . | . . . . . . . Processor 3 | . 2 . . 1 . . Hackware . | . . . . . . . Protection 1 | . . . . . . 1 Artifact . | . . . . . . . Weapon 24 | 2 4 2 . 6 1 9 Energy Gun 6 | 2 . . . 1 . 3 Energy Cannon 3 | . 1 . . . . 2 Ballistic Gun 2 | . 2 . . . . . Ballistic Cannon 3 | . . . . . . 3 Launcher 9 | . 1 2 . 5 1 . Special Weapon . | . . . . . . . Impact Weapon 1 | . . . . . . 1 Slashing Weapon . | . . . . . . . Piercing Weapon . | . . . . . . . Special Melee Weapon . | . . . . . . . Unidentified Prototypes 1 | . . 1 . . . . Parts Lost 34 | . 3 . . 8 2 21 Power 6 | . 1 . . 2 . 3 Propulsion 10 | . 2 . . 2 1 5 Utility 6 | . . . . 1 1 4 Weapon 12 | . . . . 3 . 9 Highest Loss Streak 11 | . 3 . . 2 2 11 To Critical Strikes 1 | . . . . . . 1 Average Slot Usage (%) 64 | . 68 68 88 83 68 34 Engine 4 | . 2 11 11 . 13 3 Core 2 | . . . . 9 4 . Treads 1 | . . . . . . 3 Flight 15 | . 14 13 22 31 27 . Device 8 | . 10 11 11 6 . 9 Processor 6 | . 10 11 11 9 5 . Protection 1 | . . . . . . 3 Energy Gun 4 | . 3 . . 3 7 9 Energy Cannon 3 | . 3 11 11 2 . . Ballistic Gun 4 | . 16 . . . . . Launcher 8 | . 3 11 22 20 7 . Peak Build Rating 33 | 5 7 15 15 33 21 27 Average Rating 14 | 3 6 7 15 24 16 18 On Entrance 10 | . 5 7 15 15 15 13 Naked Turns . | . . . . . . . Heaviest Build 33 | 5 11 11 10 33 18 24 Greatest Support 20 | 20 20 10 10 19 17 20 Greatest Overweight (x) 5 | . 2 2 . 4 1 5 Average Overweight (x) . | . . 1 . . . 1 Largest Inventory Capacity 5 | 5 5 5 5 5 5 5 Average Capacity 5 | 5 5 5 5 5 5 5 Most Carried 5 | 3 5 5 5 5 5 4 Average Carried 2 | 1 3 4 4 4 1 . Final Capacity 5 | 5 5 5 5 5 5 5 Final Carried 5 | 1 5 4 5 4 1 . Class Distribution -------------------- 48% | Mutant 15% | Bomber 11% | Gunner 9% | Scavenger-Mutant 6% | Scavenger-Tank 5% | Sprinter 3% | Infiltrator-Mutant Dominant Class ---------------- Mutant | -10/Materials Mutant | -9/Materials Gunner | -9/Mines Bomber | -8/Materials Mutant | -7/Factory Scavenger-Mutant | -6/Factory Resources | -11 -10 -9 -9 -8 -7 -6 ----------- Run | Yrd Mat Mat Min Mat Fac Fac Matter Collected 1315 | 250 217 . . 228 190 430 Remotely . | . . . . . . . Salvage Created 1192 | 50 303 . 6 319 31 483 Parts 77 | 3 28 . 3 27 . 16 Haulers Intercepted . | . . . . . . . Recyclers Shooed 5 | . . . . 1 . 4 Parts Field Recycled . | . . . . . . . Retrieved Matter . | . . . . . . . Parts Self-Destructed . | . . . . . . . Prevented . | . . . . . . . Kills | -11 -10 -9 -9 -8 -7 -6 ------- Run | Yrd Mat Mat Min Mat Fac Fac Combat Hostiles Destroyed 36 | 1 7 . 3 15 1 9 Melee 3 | . . . . . . 3 Guns 14 | 1 7 . . 2 . 4 Cannons 2 | . . . . . . 2 AOE 17 | . . . 3 13 1 . Classes Destroyed 10 | 1 4 . . 2 . 3 Worker 3 | . 2 . . 1 . . Builder 2 | . 2 . . . . . Watcher 2 | . 1 . . 1 . . Swarmer 13 | . 3 . 3 7 . . Grunt 14 | 1 4 . . 4 . 5 Brawler 1 | . . . . . . 1 Sentry 4 | . . . . 3 1 . Hunter 1 | . . . . 1 . . Programmer 2 | . . . . . . 2 Behemoth 1 | . . . . . . 1 Best Kill Streak 7 | 1 3 . 3 7 1 4 Combat Bots Only 7 | 1 3 . 3 7 1 4 Max Kills in Single Turn 5 | 1 2 . 2 5 1 1 Gunslinging . | . . . . . . . Exploded 5 | . . . 2 5 1 . Melee 1 | . . . . . . 1 Uniques/NPCs Destroyed . | . . . . . . . Combat | -11 -10 -9 -9 -8 -7 -6 -------- Run | Yrd Mat Mat Min Mat Fac Fac Hostile Shots Fired 353 | 7 60 . 6 60 27 193 Missed 116 | 4 18 . 1 21 13 59 Damage Taken 3904 | 30 430 . 84 869 105 2386 Core 1244 | 10 171 . 19 190 . 854 Absorbed by Shields . | . . . . . . . Core Remaining (%) 76 | 96 27 . 95 65 100 . Volleys Fired 112 | 5 36 . 2 19 4 46 Largest 3 | 2 2 . 3 3 2 3 Hottest 169 | 80 90 . 120 120 89 169 Shots Fired 210 | 10 71 . 6 37 8 78 Gun 145 | 10 66 . . 5 4 60 Cannon 30 | . 3 . 2 7 . 18 Launcher 35 | . 2 . 4 25 4 . Special . | . . . . . . . Kinetic 64 | . 46 . . . . 18 Thermal 83 | 10 23 . 2 12 4 32 Explosive 35 | . 2 . 4 25 4 . Electromagnetic 28 | . . . . . . 28 Robot Hit Streak 13 | 5 10 . . 13 7 8 Robot Miss Streak 4 | 2 4 . . 2 1 3 Penetration Max . | . . . . . . . Secondary Targets 3 | . 3 . . . . . Max Gunslinging Chain 1 | . 1 . . . . . Shots Hit Robots 125 | 7 33 . . 23 7 55 Core Hits 83 | 2 17 . 3 30 6 25 Critical Kills . | . . . . . . . Critical Parts Destroyed 2 | . 1 . . . . 1 Critical Strikes 5 | . 1 . . . . 4 Burn 1 | . . . . . . 1 Destroy 1 | . 1 . . . . . Blast 2 | . . . . . . 2 Smash 1 | . . . . . . 1 Melee Attacks 8 | . . . . . . 8 Impact 8 | . . . . . . 8 Slashing . | . . . . . . . Piercing . | . . . . . . . Sneak Attacks . | . . . . . . . Combat Hostiles . | . . . . . . . Follow-up Attacks . | . . . . . . . Damage Inflicted 3965 | 77 476 . 200 1691 123 1398 Guns 1219 | 77 328 . . 28 42 744 Cannons 517 | . 17 . . 122 . 378 Explosions 1953 | . 131 . 200 1541 81 . Melee 276 | . . . . . . 276 Ramming . | . . . . . . . Kinetic 641 | . 263 . . . . 378 Thermal 802 | 77 82 . . 150 42 451 Explosive 1953 | . 131 . 200 1541 81 . Electromagnetic 293 | . . . . . . 293 Impact 276 | . . . . . . 276 Slashing . | . . . . . . . Piercing . | . . . . . . . Highest Corruption 6 | . 1 . . . . 6 Average Corruption 3 | . 1 . . . . 5 Corruption Purged . | . . . . . . . Corruption Blocked . | . . . . . . . Effects 11 | . 2 . . . . 9 Message Errors 4 | . 1 . . . . 3 Matter Fused 3 | . 1 . . . . 2 Energy Discharges 1 | . . . . . . 1 Parts Rejected 1 | . . . . . . 1 Data Loss (major) 1 | . . . . . . 1 Alerts 1 | . . . . . . 1 Overload Shots . | . . . . . . . Overflow Damage 55 | . . . . 17 . 38 Projectiles . | . . . . . . . Explosions 17 | . . . . 17 . . Melee 38 | . . . . . . 38 Knockbacks 5 | . . . . . . 5 Impact 3 | . . . . . . 3 Kinetic 2 | . . . . . . 2 Secondary . | . . . . . . . Self-Inflicted Damage 187 | . 6 . 39 142 . . Shots 11 | . 1 . 1 9 . . Rammed 1 | . . . . 1 . . Targets Rammed 1 | . . . . 1 . . Kicked . | . . . . . . . Crushed . | . . . . . . . Highest Temperature 210 | 108 126 . . 85 210 180 Average Temperature 58 | 57 45 . . 19 128 63 Received Heat Transfer 1335 | 18 186 . . 261 30 840 Siege Activations . | . . . . . . . Robots Corrupted . | . . . . . . . Combat Hostiles . | . . . . . . . Parts Fried . | . . . . . . . Impact Corruptions 1 | . . . . . . 1 Robots Melted . | . . . . . . . Combat Hostiles . | . . . . . . . Parts Melted 3 | . 1 . . 2 . . Heat Transferred 1731 | 175 187 . . 333 111 925 Parts Sabotaged . | . . . . . . . Parts Stolen . | . . . . . . . Parts Stripped . | . . . . . . . Power Chain Reactions . | . . . . . . . Alert | -11 -10 -9 -9 -8 -7 -6 ------- Run | Yrd Mat Mat Min Mat Fac Fac Peak Influence 795 | 20 165 16 151 795 295 191 Initial 270 | . 13 16 6 58 270 144 Average 150 | 3 73 16 127 382 275 81 Maximum Alert Level 3 | . . . . 3 1 . Low Security (%) 77 | 100 100 100 100 16 . 100 Level 1 13 | . . . . 44 100 . Level 2 8 | . . . . 37 . . Level 3 . | . . . . 1 . . Level 4 . | . . . . . . . Level 5 . | . . . . . . . High Security . | . . . . . . . Max Security . | . . . . . . . Squads Dispatched 7 | . 4 . . . . 3 Investigation 2 | . 1 . . . . 1 Extermination 2 | . . . . . . 2 Reinforcement 3 | . 3 . . . . . Assault . | . . . . . . . Garrison . | . . . . . . . Intercept . | . . . . . . . Searches Triggered . | . . . . . . . Construction Impeded . | . . . . . . . Haulers Reinforced . | . . . . . . . Active Scanning Responses . | . . . . . . . Cargo Convoy Interrupts . | . . . . . . . Stealth | -11 -10 -9 -9 -8 -7 -6 --------- Run | Yrd Mat Mat Min Mat Fac Fac Distress Signals 2 | . . . . 2 . . Communications Jammed 1 | . . . . . . 1 Distress Signals 1 | . . . . . . 1 Times Spotted 55 | 1 12 . 3 26 1 12 Peak Tracking Total 7 | 1 3 . 3 7 1 3 Tactical Retreats 1 | . 1 . . . . . Traps | -11 -10 -9 -9 -8 -7 -6 ------- Run | Yrd Mat Mat Min Mat Fac Fac Traps Triggered 3 | . 2 . . . . 1 Indirectly . | . . . . . . . Trap Hack Attempts . | . . . . . . . Triggered . | . . . . . . . Disarmed . | . . . . . . . Reprogrammed . | . . . . . . . Reused . | . . . . . . . Traps Extracted . | . . . . . . . Installed . | . . . . . . . Triggered . | . . . . . . . Machines | -11 -10 -9 -9 -8 -7 -6 ---------- Run | Yrd Mat Mat Min Mat Fac Fac Machines Disabled 8 | . . . 4 4 . . Max in Single Turn 4 | . . . 4 1 . . Machines Repaired . | . . . . . . . Machines Dismantled . | . . . . . . . Machines Sabotaged . | . . . . . . . Overloaded Fab Kills . | . . . . . . . Hacking | -11 -10 -9 -9 -8 -7 -6 --------- Run | Yrd Mat Mat Min Mat Fac Fac Machines Accessed 2 | . . 1 . 1 . . Terminals 2 | . . 1 . 1 . . Fabricators . | . . . . . . . Repair Stations . | . . . . . . . Recycling Units . | . . . . . . . Scanalyzers . | . . . . . . . Garrison Access . | . . . . . . . Total Hacks 4 | . . 3 . 1 . . Successful 2 | . . 1 . 1 . . Failed 2 | . . 2 . . . . Catastrophic . | . . . . . . . Database Lockouts . | . . . . . . . Manual . | . . . . . . . Terminals 4 | . . 3 . 1 . . Fabricators . | . . . . . . . Repair Stations . | . . . . . . . Recycling Units . | . . . . . . . Scanalyzers . | . . . . . . . Garrison Access . | . . . . . . . Terminal Hacks 2 | . . 1 . 1 . . Alert Level 1 | . . 1 . . . . Security Status 1 | . . . . 1 . . Fabricator Hacks . | . . . . . . . Repair Station Hacks . | . . . . . . . Recycling Unit Hacks . | . . . . . . . Scanalyzer . | . . . . . . . Garrison Access Hacks . | . . . . . . . Unauthorized Hacks . | . . . . . . . Terminals . | . . . . . . . Fabricators . | . . . . . . . Repair Stations . | . . . . . . . Recycling Units . | . . . . . . . Scanalyzers . | . . . . . . . Garrison Access . | . . . . . . . Data Cores Recovered . | . . . . . . . Used . | . . . . . . . Hacking Detections 1 | . . 1 . . . . Full Trace Events . | . . . . . . . Feedback Events . | . . . . . . . Feedback Blocked . | . . . . . . . Robot Schematics Acquired . | . . . . . . . Robots Built . | . . . . . . . Authchips . | . . . . . . . Time . | . . . . . . . Total Robot Build Rating . | . . . . . . . Part Schematics Acquired . | . . . . . . . Parts Built . | . . . . . . . Authchips . | . . . . . . . Time . | . . . . . . . Total Part Build Rating . | . . . . . . . Parts Repaired . | . . . . . . . Time . | . . . . . . . Parts Recycled . | . . . . . . . Recycled Matter . | . . . . . . . Retrieved Matter . | . . . . . . . Retrieved Components . | . . . . . . . Parts Scanalyzed . | . . . . . . . Part Schematics Acquired . | . . . . . . . Parts Damaged . | . . . . . . . Bothacking | -11 -10 -9 -9 -8 -7 -6 ------------ Run | Yrd Mat Mat Min Mat Fac Fac Used RIF Installer . | . . . . . . . Robots Hacked . | . . . . . . . Non-combat . | . . . . . . . Combat . | . . . . . . . Robot Hacks Applied . | . . . . . . . Relay Couplers Released . | . . . . . . . Fabnet Peak Effective % . | . . . . . . . Robots Rewired . | . . . . . . . Allies Hacked . | . . . . . . . Hacks Repelled . | . . . . . . . Allies | -11 -10 -9 -9 -8 -7 -6 -------- Run | Yrd Mat Mat Min Mat Fac Fac Total Allies 2 | . . . 2 . . . Largest Group 2 | . . . 2 2 . . Highest-Rated Group 46 | . . . 46 46 . . Highest-Rated Ally 31 | . . . 31 31 . . Total Orders . | . . . . . . . Ally Attacks 38 | . . . . 38 . . Total Damage 457 | . . . . 457 . . Kills 4 | . . . . 4 . . Allies Corrupted . | . . . . . . . Allies Melted 1 | . . . . 1 . . Intel | -11 -10 -9 -9 -8 -7 -6 ------- Run | Yrd Mat Mat Min Mat Fac Fac Robot Analysis Total . | . . . . . . . Derelict Logs Recovered . | . . . . . . . Drone Launches . | . . . . . . . Drone Recoveries . | . . . . . . . Exploration | -11 -10 -9 -9 -8 -7 -6 ------------- Run | Yrd Mat Mat Min Mat Fac Fac Turns Passed 2263 | 78 596 147 222 495 91 634 Spaces Moved 2158 | 74 472 82 576 609 93 252 Core 136 | 24 . . . 27 . 85 Treads 144 | . . . . . . 144 Legs . | . . . . . . . Wheels 80 | 50 30 . . . . . Hover . | . . . . . . . Flight 1798 | . 442 82 576 582 93 23 Fastest Speed 28 | 50 37 37 37 29 28 34 Average Speed 82 | 70 97 164 37 65 74 180 Slowest Speed 320 | 80 200 200 37 250 112 320 Overloaded Moves . | . . . . . . . Propulsion Burnouts . | . . . . . . . Robots Hopped 2 | . . 1 . 1 . . Cave-ins Triggered . | . . . . . . . Exploration Rate (%) 29 | 5 38 13 84 55 5 5 Regions Visited 6 Branch Regions 1 Pre-discovered Areas . | . . . . . . . Known Exits Taken . | . . . . . . . Unknown Exits Taken 6 | 1 1 1 1 1 1 . Scrap Searched . | . . . . . . . Spaces Dug . | . . . . . . . Terrain Destroyed 288 | . 20 . 26 240 . 2 Melee . | . . . . . . . Projectile 2 | . . . . . . 2 AOE 286 | . 20 . 26 240 . . Terrain Rammed . | . . . . . . . Walls Destroyed . | . . . . . . . Machines Disabled . | . . . . . . . Actions | -11 -10 -9 -9 -8 -7 -6 --------- Run | Yrd Mat Mat Min Mat Fac Fac Total 2429 | 89 546 92 580 667 108 347 Wait 7 | . . . . 5 . 2 Move 2148 | 73 471 79 575 606 92 252 Hop 2 | . . 1 . 1 . . Pick Up 59 | 6 17 3 2 12 1 18 Fast Attach 5 | . 1 2 . 2 . . Attach 52 | 5 9 1 . 11 7 19 Detach 3 | . . . . . 3 . Swap 6 | . 2 2 . 2 . . Drop 26 | . 10 4 1 8 1 2 Fire 112 | 5 36 . 2 19 4 46 Melee 8 | . . . . . . 8 Ram 1 | . . . . 1 . . Kick . | . . . . . . . Crush . | . . . . . . . Escape Stasis . | . . . . . . . Rewire . | . . . . . . . Trap . | . . . . . . . Miscellaneous . | . . . . . . . Route ------- -11/Scrapyard -10/Materials -9/Materials (discovered 2 exits: [*Min] / [*Sto]) -9/Mines -8/Materials -7/Factory -6/Factory History --------- Turn | Location | Event 2 | -11/Scrapyard | Met Revision 17 47 | -11/Scrapyard | Discovered new exit (range 8) 79 | -11/Scrapyard | Entered Materials 227 | -10/Materials | Lost 3 parts (1p2n) 308 | -10/Materials | Build established: Mutant 315 | -10/Materials | Core integrity fell below 50% 652 | -10/Materials | Discovered new exit (range 5) 675 | -10/Materials | Entered another Materials area 675 | -9/Materials | Evolved 2 slots: Power x1, Weapon x1 699 | -9/Materials | Discovered new exit (range 13) 807 | -9/Materials | Discovered new exit (range 14) 822 | -9/Materials | Entered Mines 955 | -9/Mines | Discovered new exit (range 5) 1044 | -9/Mines | Entered Materials 1044 | -8/Materials | Accompanied by 2 allies 1044 | -8/Materials | Evolved 2 slots: Propulsion x2 1049 | -8/Materials | Led the pair of lost Derelicts to an unsafe place 1474 | -8/Materials | Destroyed 7 combat bots 1482 | -8/Materials | Build established: Bomber 1512 | -8/Materials | Discovered new exit (range 15) 1539 | -8/Materials | Entered Factory 1539 | -7/Factory | Evolved 2 slots: Power x1, Utility x1 1605 | -7/Factory | Discovered new exit (range 13) 1630 | -7/Factory | Entered another Factory area 1630 | -6/Factory | Evolved 2 slots: Utility x1, Weapon x1 1635 | -6/Factory | Spotted B-75 Beast 1677 | -6/Factory | Destroyed B-75 Beast 1706 | -6/Factory | Lost 11 parts (3p4n1u3w) 1799 | -6/Factory | Core integrity fell below 50% 1847 | -6/Factory | Lost 5 parts (1n2u2w) 2060 | -6/Factory | Core integrity fell below 20% 2264 | -6/Factory | Destroyed by Y-54 Guardian with Flak Gun Last Messages --------------- Acquired 31 matter. R-10 Processor collects Hvy. Laser. R-10 Processor collects Corrupted Carbon-fiber Leg. ALERT: Rogue bot located, Programmers report to Factory Zone 8X. Shock Rifle destroyed. Acquired Dynamic Insulation System. System corrupted: Lgt. Angular Momentum Engine rejected. Imp. Light Armor Plating destroyed. Lgt. Treads destroyed. Hvy. Laser destroyed. Imp. Heat Sink destroyed. [Achievement: 5k Club] Important note for Steam players: Cogmind player global achievement rates displayed by Steam are all significantly underreported, in some cases by a huge margin, due to how they are calculated by Valve. Map ----- +----------------------------------------------------+ | ?????????????????????????????????????? | | ?????????????????????????????????????? | | ?????????????????????????????????????? | | ?????????????????????????????????????? | | ?????????????????????????????????????? | | ?????????????????????????????????????? | | ?????????????????????????????????????? | | ?????????????????????????????????????? | | ?????????????????????????????????????? | | ?????????????????????????????????????? | | ?????????????????????????????????????? | | ?????????????????????????????????????? | | ?????????????????????????????????????? | | ?????????????#####???????????????????? | | ????????????? #???????????????????? | | ????????????"" #???????????????????? | | ???????????""" #???????????????????? | | ??????????"""" #???????????????????? | | ????# ????"""" #???????????????????? | | ????# ?? #???????????????????? | | ????# """""" #???????????????????? | | ????# """""" #???????????????????? | | ????# """""" #???????????????????? | | ????# """""" #???????????????????? | | ????# Y #???????????????????? | | ????# p@ #???????????????????? | | ????#######+######## ?????????????? | | ????????# #???????????? | | ????????# ######?????????????????? | | ????????# #??????????????????????? | | ????????# #??????????????????????? | | ????????+ #??????????????????????? | | ????????# #??????????????????????? | | ????????# #??????????????????????? | | ????????# #??????????????????????? | | ????????# #??????????????????????? | | ????????+ #??????????????????????? | | ????????# +??????????????????????? | | ????????# #??????????????????????? | | ????????# #??????????????????????? | | ????????# #??????????????????????? | | ????????# #??????????????????????? | | ????????# #??????????????????????? | | ????????# #??????????????????????? | | ????????# #??????????????????????? | | ????????# #??????????????????????? | | ????????# #??????????????????????? | | ????????# ########???????????????? | | ????????# #???????????????? | | ????????# #???????????????? | +----------------------------------------------------+ Best States ------------- Heat Dissipation 53 Energy Generation 24 Energy Capacity 220 Matter Stores 300 Matter Capacity 300 Sight Range 18 Terrain Scan Density 10 Jamming Range 12 EM Shielding 2 Armor Coverage 150 Evasion (%) 64 Targeting Accuracy 8 Recoil Reduction 1 Item Schematics ----------------- None Robot Schematics ------------------ None Fabricated ------------ Nothing Alien Tech Used ----------------- None Achievements -------------- 5k Club Hey, That's Mine! Made in Tau Ceti IV Oops Quick And Dirty Challenges ------------ None Game ------ Seed LightningBombardmentReactor Manual? 0 Play Time 00:36:25 Cumulative 1.2 hours Start 2024.10.06 @ 22:57:34 End 2024.10.06 @ 23:32:03 Sessions 1 Manual Loads 0 Difficulty Rogue Special Mode None Game No. 3 Rogue 3 Adventurer 0 Explorer 0 Win Type - Total 0 Types 0/0/0/0/0/0/0/0/0 Lore% 0 Gallery% 4 Achievement% 5 Wizard Run 0 Options --------- Layout 1 ASCII 0 Keyboard 0 Movement Mouse Keybinds 0 Fullscreen 1 Font 32/SmallcapsGlow Map View 50x35 Zoom Use 0% Tactical HUD 0 Map Filters NONE Filters NONE Steam 1 RUN: 91847734-ce21-4072-ad4a-a56f7e714bb0